bitfinex/quotes_BTCUSD_20241222
["timestamp","ask_amount","ask_price","bid_price","bid_amount"]
[1734834609174,0.00024917,96997.0,96996.0,0.93939595]
[1734834609576,0.00024917,96997.0,96996.0,0.94339595]
[1734834609967,0.00024917,96997.0,96996.0,0.93939595]
[1734834610256,0.00024917,96997.0,96996.0,1.48135372]
[1734834610409,0.00024917,96997.0,96996.0,1.49035372]
[1734834611400,0.00024917,96997.0,96996.0,1.50045418]
[1734834612028,0.00024917,96997.0,96996.0,1.00420335]
[1734834612235,0.00024917,96997.0,96996.0,0.90823295]
[1734834612462,0.00024917,96997.0,96996.0,1.00420335]
[1734834612682,0.00024917,96997.0,96996.0,0.90289495]
[1734834612894,0.08164917,96997.0,96996.0,0.89279449]
[1734834613096,0.08164917,96997.0,96996.0,0.34183672]
[1734834613301,0.08164917,96997.0,96996.0,0.33783672]
[1734834613508,0.08164917,96997.0,96996.0,0.24186632]
[1734834613711,0.08164917,96997.0,96996.0,0.34383672]
[1734834613932,0.08164917,96997.0,96996.0,0.33783672]
[1734834614333,0.08164917,96997.0,96996.0,0.34283672]
[1734834614533,0.08164917,96997.0,96996.0,0.33783672]
[1734834614751,0.08164917,96997.0,96996.0,0.33283672]
[1734834614984,0.12954917,96997.0,96996.0,0.0979704]
[1734834615280,0.12954917,96997.0,96996.0,0.002]
[1734834615688,0.12954917,96997.0,96991.0,0.0959704]
[1734834615886,0.12954917,96997.0,96996.0,0.002]
[1734834616342,0.12954917,96997.0,96996.0,0.0979704]
[1734834616503,0.12954917,96997.0,96996.0,0.0989704]
[1734834616707,0.12954917,96997.0,96996.0,0.0959704]
[1734834617141,0.12954917,96997.0,96996.0,0.0969704]
[1734834617737,0.13206688,96997.0,96996.0,0.0969704]
[1734834617939,0.13206688,96997.0,96996.0,0.12764272]
[1734834618169,0.12954917,96997.0,96996.0,0.12764272]
[1734834618516,0.13204788,96997.0,96996.0,0.12764272]
[1734834619436,0.13304788,96997.0,96996.0,0.12664272]
[1734834619637,0.13404788,96997.0,96996.0,0.12664272]
[1734834619889,0.13304788,96997.0,96996.0,0.12664272]
[1734834620130,0.13304788,96997.0,96996.0,0.12764272]
[1734834620369,0.13054917,96997.0,96996.0,0.12764272]
[1734834620572,0.12954917,96997.0,96996.0,0.12764272]
[1734834620794,0.13204549,96997.0,96996.0,0.12864272]
[1734834621096,0.08414549,96997.0,96996.0,0.12664272]
[1734834621296,0.08414549,96997.0,96996.0,0.12764272]
[1734834621676,0.08164917,96997.0,96996.0,0.12764272]
[1734834622083,0.08414771,96997.0,96996.0,0.12764272]
[1734834624677,0.08164917,96997.0,96996.0,0.12764272]
[1734834625034,0.08415015,96997.0,96996.0,0.0969704]
[1734834626180,0.08415015,96997.0,96977.0,0.206232]
[1734834626181,0.08415015,96997.0,96985.0,0.03067232]
[1734834626391,0.08515015,96997.0,96982.0,0.03067232]
[1734834626590,0.206208,96989.0,96982.0,0.03067232]
[1734834627170,0.00250556,96988.0,96982.0,0.03067232]
[1734834627644,0.206198,96994.0,96982.0,0.03067232]
[1734834627846,0.00250556,96987.0,96983.0,0.03067232]
[1734834628047,0.206198,96994.0,96982.0,0.03067232]
[1734834628391,0.00250556,96993.0,96985.0,0.03067232]
[1734834629334,0.00250556,96993.0,96992.0,0.0959704]
[1734834629531,0.001,96993.0,96992.0,0.0959704]
[1734834629792,0.20969782,96993.0,96992.0,0.0959704]
[1734834630071,0.2082,96993.0,96988.0,0.0959704]
[1734834630280,0.20969782,96993.0,96988.0,0.0959704]
[1734834630634,0.21069782,96993.0,96989.0,0.0959704]
[1734834630975,0.206213,96987.0,96984.0,0.0959704]
[1734834631221,0.206213,96987.0,96982.0,0.0959704]
[1734834631431,0.00249879,96986.0,96982.0,0.0959704]
[1734834631960,0.1293,96985.0,96982.0,0.0959704]
[1734834632559,0.00249879,96984.0,96982.0,0.0959704]
[1734834632780,0.00249879,96984.0,96983.0,0.12664272]
[1734834633234,0.1293,96985.0,96983.0,0.12664272]
[1734834633415,0.1293,96985.0,96984.0,0.0959704]
[1734834633808,0.1293,96985.0,96973.0,0.03067232]
[1734834634033,0.1293,96985.0,96970.0,0.0001714]
[1734834634034,0.1293,96985.0,96979.0,0.0959704]
[1734834634261,0.1293,96985.0,96974.0,0.12664272]
[1734834634393,0.1293,96985.0,96976.0,0.0959704]
[1734834634708,0.206221,96983.0,96978.0,0.0959704]
[1734834636501,0.413443,96983.0,96978.0,0.0959704]
[1734834637007,0.0192462,96982.0,96978.0,0.0959704]
[1734834637658,0.002,96983.0,96978.0,0.0959704]
[1734834637837,0.001,96983.0,96978.0,0.0959704]
[1734834638036,0.001,96982.0,96978.0,0.0959704]
[1734834638669,0.002,96982.0,96981.0,0.12664272]
[1734834639201,0.001,96982.0,96981.0,0.12664272]
[1734834639445,0.0807,96985.0,96981.0,0.12664272]
[1734834639653,0.001,96982.0,96981.0,0.12664272]
[1734834639823,0.0807,96985.0,96981.0,0.12664272]
[1734834639824,0.0807,96985.0,96982.0,0.0959704]
[1734834640024,8.57e-05,96986.0,96985.0,0.03067232]
[1734834641073,8.57e-05,96986.0,96985.0,0.12664272]
[1734834641282,0.0010857,96986.0,96985.0,0.12664272]
[1734834642289,0.2073007,96986.0,96984.0,0.12664272]
[1734834642486,0.2073007,96986.0,96985.0,0.0959704]
[1734834642709,0.2063007,96986.0,96985.0,0.0959704]
[1734834642905,0.0010857,96986.0,96985.0,0.0959704]
[1734834643106,8.57e-05,96986.0,96985.0,0.0959704]
[1734834643336,0.01937998,96986.0,96985.0,0.0959704]
[1734834643512,0.02037998,96986.0,96985.0,0.0959704]
[1734834643651,0.01937998,96986.0,96985.0,0.0959704]
[1734834644051,0.02037998,96986.0,96985.0,0.0959704]
[1734834645671,0.01937998,96986.0,96985.0,0.0959704]
[1734834645873,0.02037998,96986.0,96985.0,0.0959704]
[1734834646341,0.01937998,96986.0,96985.0,0.0959704]
[1734834646542,0.02037998,96986.0,96985.0,0.0959704]
[1734834647042,0.02137998,96986.0,96985.0,0.0959704]
[1734834647474,0.01937998,96986.0,96985.0,0.0959704]
[1734834647790,0.02037998,96986.0,96985.0,0.0959704]
[1734834648196,0.01937998,96986.0,96985.0,0.0959704]
[1734834648642,0.02037998,96986.0,96985.0,0.0959704]
[1734834648941,0.01937998,96986.0,96985.0,0.0959704]
[1734834651198,0.01937998,96986.0,96984.0,0.0959704]
[1734834651433,0.01937998,96986.0,96977.0,0.12664272]
[1734834651605,0.10109428,96985.0,96977.0,0.12664272]
[1734834651834,0.206219,96984.0,96969.0,8.57e-05]
[1734834651951,0.206246,96972.0,96969.0,8.57e-05]
[1734834652157,0.10109428,96971.0,96969.0,8.57e-05]
[1734834653003,0.10109428,96971.0,96970.0,0.0011714]
[1734834653398,0.10109428,96971.0,96970.0,0.0001714]
[1734834654876,0.10109428,96971.0,96970.0,0.0961418]
[1734834655040,0.10209428,96971.0,96970.0,0.0961418]
[1734834655473,0.10556473,96971.0,96970.0,0.0961418]
[1734834655682,0.10456473,96971.0,96970.0,0.0001714]
[1734834655897,0.10556473,96971.0,96970.0,0.0961418]
[1734834656700,0.02376473,96971.0,96970.0,0.0961418]
[1734834657087,0.02129428,96971.0,96970.0,0.0961418]
[1734834657305,0.0237563,96971.0,96970.0,0.0961418]
[1734834658088,0.0227563,96971.0,96970.0,0.0961418]
[1734834658303,0.0217563,96971.0,96970.0,0.0961418]
[1734834658506,0.0227563,96971.0,96970.0,0.12681412]
[1734834658833,0.0217563,96971.0,96970.0,0.12681412]
[1734834659035,0.01929428,96971.0,96970.0,0.12781412]
[1734834659235,0.01929428,96971.0,96970.0,0.12681412]
[1734834659436,0.09261538,96986.0,96979.0,0.0959704]
[1734834659896,0.00246202,96985.0,96982.0,0.03067232]
[1734834660027,0.02176899,96985.0,96982.0,0.12664272]
[1734834660225,0.02176899,96985.0,96984.0,0.0959704]
[1734834660875,0.02176899,96985.0,96984.0,0.12664272]
[1734834661426,0.01930697,96985.0,96984.0,0.12664272]
[1734834662216,0.02130697,96985.0,96984.0,0.12664272]
[1734834662438,0.01930697,96985.0,96984.0,0.12664272]
[1734834662844,0.02030697,96985.0,96984.0,0.12664272]
[1734834663426,0.02230697,96985.0,96984.0,0.12764272]
[1734834663830,0.02030697,96985.0,96984.0,0.12764272]
[1734834664670,0.01930697,96985.0,96984.0,0.12764272]
[1734834664809,0.01930697,96985.0,96984.0,0.12664272]
[1734834665008,0.01930697,96985.0,96984.0,0.12764272]
[1734834665311,0.01930697,96985.0,96984.0,0.12664272]
[1734834665741,0.01930697,96985.0,96984.0,0.12764272]
[1734834667723,0.09788927,96985.0,96984.0,0.12764272]
[1734834668360,0.09788927,96985.0,96984.0,0.001]
[1734834669174,0.30410627,96985.0,96984.0,0.001]
[1734834669392,0.251319,96984.0,96977.0,0.0959704]
[1734834669562,0.251319,96984.0,96976.0,0.0959704]
[1734834669764,0.20623,96979.0,96970.0,0.0001714]
[1734834670059,0.0761,96973.0,96970.0,0.0001714]
[1734834670259,0.206245,96972.0,96970.0,0.0001714]
[1734834670616,0.02178577,96971.0,96970.0,0.0001714]
[1734834671031,0.12309417,96971.0,96970.0,0.0001714]
[1734834671198,0.14609417,96971.0,96970.0,0.0001714]
[1734834671615,0.14609417,96971.0,96970.0,0.0041714]
[1734834672019,0.14609417,96971.0,96970.0,0.0011714]
[1734834672368,0.14809417,96971.0,96970.0,0.0011714]
[1734834672580,0.28696414,96971.0,96970.0,0.0001714]
[1734834672733,0.16365574,96971.0,96970.0,0.0961418]
[1734834673950,0.02478577,96971.0,96970.0,0.0961418]
[1734834676412,0.02378577,96971.0,96970.0,0.0961418]
[1734834676567,0.02478577,96971.0,96970.0,0.12681412]
[1734834676794,0.02230697,96971.0,96970.0,0.12681412]
[1734834676995,0.02030697,96971.0,96970.0,0.0001714]
[1734834677196,0.00546178,96971.0,96970.0,0.0001714]
[1734834677421,0.02476875,96971.0,96970.0,0.0001714]
[1734834677620,0.02276875,96971.0,96970.0,0.0001714]
[1734834678312,0.02476875,96971.0,96970.0,0.0001714]
[1734834678510,0.02376875,96971.0,96970.0,0.0001714]
[1734834678700,0.02176875,96971.0,96970.0,0.0001714]
[1734834678906,0.02376875,96971.0,96970.0,0.0001714]
[1734834679525,0.10046875,96971.0,96970.0,0.0001714]
[1734834679701,0.22577715,96971.0,96970.0,0.0001714]
[1734834680107,0.22277715,96971.0,96970.0,0.0001714]
[1734834680367,0.38496332,96971.0,96970.0,0.0001714]
[1734834680518,0.502991,96971.0,96970.0,0.0001714]
[1734834680750,0.84295209,96971.0,96970.0,0.0001714]
[1734834680946,0.84495209,96971.0,96970.0,0.0001714]
[1734834681177,0.89541639,96971.0,96970.0,0.0001714]
[1734834681528,0.89741639,96971.0,96970.0,0.0011714]
[1734834681646,0.864487,96971.0,96970.0,0.0011714]
[1734834681845,0.89441586,96971.0,96970.0,0.0001714]
[1734834682253,0.89541586,96971.0,96970.0,0.0001714]
[1734834682452,0.09797808,96950.0,96935.0,0.03075802]
[1734834682648,0.1013084,96949.0,96936.0,0.0959704]
[1734834682929,0.206314,96940.0,96935.0,0.03075802]
[1734834683124,0.206314,96940.0,96937.0,0.0959704]
[1734834683327,0.01930697,96939.0,96937.0,0.0959704]
[1734834683537,0.02173131,96939.0,96937.0,0.0959704]
[1734834683682,0.00242434,96939.0,96937.0,0.09651592]
[1734834684092,0.00242434,96939.0,96938.0,0.0959704]
[1734834684506,0.206304,96944.0,96943.0,0.0959704]
[1734834684931,0.20872834,96944.0,96943.0,0.0959704]
[1734834685809,0.41503234,96944.0,96937.0,0.09651592]
[1734834686012,0.41603234,96944.0,96938.0,0.0959704]
[1734834686207,0.41603234,96944.0,96943.0,0.0001714]
[1734834686583,0.41503234,96944.0,96943.0,0.0001714]
[1734834686966,0.43427555,96944.0,96943.0,0.0001714]
[1734834687157,0.43627555,96944.0,96943.0,0.0001714]
[1734834687561,0.43727555,96944.0,96943.0,0.0001714]
[1734834688856,0.43627555,96944.0,96943.0,0.0001714]
[1734834689327,0.43727555,96944.0,96943.0,0.0001714]
[1734834690111,0.23097155,96944.0,96943.0,0.0001714]
[1734834690520,0.21172834,96944.0,96943.0,0.0001714]
[1734834691489,0.00542434,96944.0,96943.0,0.0001714]
[1734834692326,0.00442434,96944.0,96943.0,0.0001714]
[1734834692534,0.00542434,96944.0,96943.0,0.0001714]
[1734834692953,0.00242434,96944.0,96943.0,0.12681412]
[1734834693082,0.01924321,96949.0,96948.0,0.03067232]
[1734834693281,0.01924321,96958.0,96948.0,0.03067232]
[1734834693696,0.00239083,96957.0,96948.0,0.03067232]
[1734834694135,0.00239083,96957.0,96949.0,0.206294]
[1734834694303,0.00239083,96957.0,96948.0,0.03067232]
[1734834694508,0.001,96949.0,96946.0,0.12664272]
[1734834694705,0.206282,96955.0,96943.0,0.0001714]
[1734834694706,0.206296,96948.0,96944.0,0.0959704]
[1734834694909,0.08159083,96948.0,96943.0,0.0961418]
[1734834695117,0.08159083,96948.0,96947.0,0.0959704]
[1734834696352,0.00239083,96948.0,96947.0,0.0959704]
[1734834696558,0.00339083,96948.0,96947.0,0.0959704]
[1734834696820,0.00339083,96948.0,96944.0,0.0959704]
[1734834697027,0.00339083,96948.0,96947.0,0.0959704]
[1734834697156,0.02263404,96948.0,96947.0,0.0959704]
[1734834697359,0.02024321,96948.0,96947.0,0.0959704]
[1734834697563,0.001,96948.0,96947.0,0.0959704]
[1734834698033,0.02024321,96948.0,96947.0,0.0959704]
[1734834700899,0.02024321,96948.0,96947.0,0.12664272]
[1734834702087,0.01924321,96948.0,96947.0,0.12664272]
[1734834702720,0.02024321,96948.0,96947.0,0.12664272]
[1734834702920,0.01924321,96948.0,96947.0,0.12664272]
[1734834703124,0.01924321,96948.0,96947.0,0.12764272]
[1734834703357,0.01924321,96962.0,96957.0,0.206277]
[1734834703761,0.01924321,96961.0,96957.0,0.206277]
[1734834704115,0.01924321,96960.0,96959.0,0.0959704]
[1734834706094,0.02124321,96960.0,96959.0,0.0959704]
[1734834706516,0.02224321,96960.0,96959.0,0.0959704]
[1734834706713,0.02024321,96960.0,96959.0,0.0959704]
[1734834707111,0.02124321,96960.0,96959.0,0.0959704]
[1734834707298,0.02224321,96960.0,96959.0,0.0959704]
[1734834707925,0.0246598,96960.0,96959.0,0.0959704]
[1734834708101,0.02024321,96960.0,96959.0,0.0959704]
[1734834708297,0.02024321,96960.0,96956.0,0.0959704]
[1734834708570,0.02024321,96960.0,96931.0,0.54612897]
[1734834708571,0.206285,96953.0,96948.0,0.0959704]
[1734834708732,0.206285,96953.0,96939.0,0.03067232]
[1734834708907,0.206285,96953.0,96942.0,0.0959704]
[1734834709110,0.02166671,96952.0,96938.0,0.03067232]
[1734834709295,0.02166671,96952.0,96937.0,0.00054552]
[1734834709296,0.2063,96946.0,96937.0,0.00054552]
[1734834709713,0.206304,96944.0,96937.0,0.00054552]
[1734834710136,0.206304,96944.0,96943.0,0.0011714]
[1734834710341,0.22796583,96944.0,96943.0,0.0021714]
[1734834711363,0.22796583,96944.0,96943.0,0.0011714]
[1734834711971,0.22796583,96944.0,96943.0,0.0001714]
[1734834712164,0.23296583,96944.0,96943.0,0.0001714]
[1734834712430,0.22996583,96944.0,96943.0,0.0001714]
[1734834712908,0.23096583,96944.0,96943.0,0.0001714]
[1734834713131,0.22996583,96944.0,96943.0,0.0001714]
[1734834713447,0.23296583,96944.0,96943.0,0.0001714]
[1734834718649,0.65560191,96944.0,96943.0,0.0001714]
[1734834718854,0.73316399,96944.0,96943.0,0.0001714]
[1734834719753,1.07488645,96944.0,96943.0,0.0001714]
[1734834721266,0.229317,96938.0,96937.0,0.00054552]
[1734834721470,0.3306254,96938.0,96937.0,0.00054552]
[1734834721665,0.33302212,96938.0,96937.0,0.00054552]
[1734834721885,0.41202212,96938.0,96937.0,0.00054552]
[1734834722115,0.43126533,96938.0,96937.0,0.00054552]
[1734834722278,0.6825362,96938.0,96937.0,0.00054552]
[1734834722631,0.6835362,96938.0,96937.0,0.00054552]
[1734834722835,0.69395106,96938.0,96937.0,0.00054552]
[1734834723418,1.03567352,96938.0,96937.0,0.00054552]
[1734834723828,1.00373033,96938.0,96937.0,0.00063122]
[1734834723985,1.00273033,96938.0,96937.0,0.00063122]
[1734834724181,1.00573033,96938.0,96937.0,0.00063122]
[1734834724505,1.23617315,96938.0,96937.0,0.00063122]
[1734834724891,1.23717315,96938.0,96937.0,0.00163122]
[1734834725293,1.24117315,96938.0,96937.0,0.00163122]
[1734834725520,1.17184547,96938.0,96937.0,0.00163122]
[1734834725881,0.60180521,96938.0,96937.0,0.00163122]
[1734834726303,0.37036239,96938.0,96937.0,0.00163122]
[1734834727422,0.02563993,96938.0,96937.0,0.00063122]
[1734834727913,0.02463993,96938.0,96937.0,0.00163122]
[1734834728038,0.02563993,96938.0,96937.0,0.00063122]
[1734834728556,0.02863993,96938.0,96937.0,0.00063122]
[1734834728812,0.02463993,96938.0,96937.0,0.00063122]
[1734834729052,0.02663993,96938.0,96937.0,0.00063122]
[1734834729289,0.02424321,96938.0,96937.0,0.00063122]
[1734834730007,0.02662792,96938.0,96937.0,0.00063122]
[1734834730247,0.02462792,96938.0,96937.0,0.00063122]
[1734834730738,0.10062792,96938.0,96937.0,0.00063122]
[1734834730973,0.10362792,96938.0,96937.0,0.00063122]
[1734834731708,0.10062792,96938.0,96937.0,0.00063122]
[1734834732176,0.10562792,96938.0,96937.0,0.00063122]
[1734834732423,0.10262792,96938.0,96937.0,0.00063122]
[1734834732663,0.02362792,96938.0,96937.0,0.00063122]
[1734834733156,0.02662792,96938.0,96937.0,0.00063122]
[1734834736989,0.15093632,96938.0,96937.0,0.00063122]
[1734834737192,0.42693632,96938.0,96937.0,0.00063122]
[1734834737371,0.42393632,96938.0,96937.0,0.00063122]
[1734834737645,0.42493632,96938.0,96937.0,0.00063122]
[1734834737853,0.42693632,96938.0,96937.0,0.00063122]
[1734834738022,0.25958471,96938.0,96937.0,0.00063122]
[1734834738373,0.08658471,96938.0,96937.0,0.00063122]
[1734834739043,0.23658471,96938.0,96937.0,0.00063122]
[1734834739596,0.25588774,96938.0,96937.0,0.00063122]
[1734834740401,0.37719614,96938.0,96937.0,0.00063122]
[1734834740793,0.36089311,96938.0,96937.0,0.00063122]
[1734834741012,0.45348506,96938.0,96937.0,0.00063122]
[1734834741438,0.45148506,96938.0,96937.0,0.00063122]
[1734834741608,0.45348506,96938.0,96937.0,0.00063122]
[1734834742175,0.70228563,96938.0,96937.0,0.00063122]
[1734834742585,0.70028563,96938.0,96937.0,0.00063122]
[1734834742837,0.70228563,96938.0,96937.0,0.00063122]
[1734834743331,0.69928563,96938.0,96937.0,0.00063122]
[1734834743746,0.70228563,96938.0,96937.0,0.00063122]
[1734834744041,0.69928563,96938.0,96937.0,0.00063122]
[1734834744276,0.70228563,96938.0,96937.0,0.00063122]
[1734834744501,0.70028563,96938.0,96937.0,0.00063122]
[1734834744678,0.70228563,96938.0,96937.0,0.00063122]
[1734834745123,0.69728563,96938.0,96937.0,0.00063122]
[1734834745256,0.70028563,96938.0,96937.0,0.00063122]
[1734834745434,0.70228563,96938.0,96937.0,0.00063122]
[1734834746107,0.74998563,96938.0,96937.0,0.00063122]
[1734834746745,0.81931331,96938.0,96937.0,0.00063122]
[1734834747308,0.85129181,96938.0,96937.0,0.00063122]
[1734834747725,1.0827717,96938.0,96937.0,0.00063122]
[1734834748132,1.0827717,96938.0,96931.0,0.0001712]
[1734834748133,0.06932768,96935.0,96931.0,0.0001712]
[1734834748373,0.37933,96932.0,96931.0,0.00033492]
[1734834748582,0.63316608,96932.0,96931.0,0.00033492]
[1734834748785,0.63719568,96932.0,96931.0,0.00033492]
[1734834749013,0.67156533,96932.0,96931.0,0.00033492]
[1734834750367,0.72168818,96932.0,96931.0,0.00033492]
[1734834750575,1.0630807,96932.0,96931.0,0.00033492]
[1734834750794,1.0690807,96932.0,96931.0,0.00133492]
[1734834751380,1.03823587,96932.0,96931.0,0.00133492]
[1734834752196,1.04123587,96932.0,96931.0,0.00133492]
[1734834752579,1.00925413,96932.0,96931.0,0.00133492]
[1734834753842,1.02997176,96932.0,96931.0,0.00133492]
[1734834754823,1.06191115,96932.0,96931.0,0.00133492]
[1734834755029,1.09270711,96932.0,96931.0,0.00133492]
[1734834756092,1.06191115,96932.0,96931.0,0.00133492]
[1734834756328,0.09635728,96928.0,96917.0,0.0001712]
[1734834756462,0.34766568,96928.0,96917.0,0.0001712]
[1734834756689,0.35003072,96928.0,96917.0,0.0001712]
[1734834756892,0.36930874,96928.0,96917.0,0.0001712]
[1734834757497,0.37430874,96928.0,96917.0,0.0001712]
[1734834757699,0.71570126,96928.0,96917.0,0.0001712]
[1734834757897,0.71770126,96928.0,96917.0,0.0001712]
[1734834760708,0.72793913,96928.0,96917.0,0.0001712]
[1734834762650,0.80843913,96928.0,96917.0,0.0001712]
[1734834763822,0.06932768,96919.0,96917.0,0.0001712]
[1734834764031,0.4806684,96918.0,96917.0,0.0001712]
[1734834764238,0.49994642,96918.0,96917.0,0.0001712]
[1734834764445,0.50231146,96918.0,96917.0,0.0001712]
[1734834766133,0.6420511,96918.0,96917.0,0.0001712]
[1734834766941,0.65263389,96918.0,96917.0,0.0001712]
[1734834767462,0.85239117,96918.0,96917.0,0.0001712]
[1734834768372,0.85539117,96918.0,96917.0,0.0001712]
[1734834768597,0.86339117,96918.0,96917.0,0.0011712]
[1734834768805,0.89536525,96918.0,96917.0,0.0011712]
[1734834768939,0.88736525,96918.0,96917.0,0.0001712]
[1734834769141,0.88736525,96918.0,96917.0,2e-07]
[1734834769142,1.09007195,96918.0,96917.0,2e-07]
[1734834769335,1.09807195,96918.0,96917.0,2e-07]
[1734834769548,1.13034171,96918.0,96917.0,2e-07]
[1734834769802,1.13034171,96918.0,96900.0,0.0001712]
[1734834769803,0.15385728,96901.0,96900.0,0.0001712]
[1734834769998,0.63456168,96901.0,96900.0,0.0001712]
[1734834770165,0.63689753,96901.0,96900.0,0.0001712]
[1734834770395,0.65617555,96901.0,96900.0,0.0001712]
[1734834771499,0.65917555,96901.0,96900.0,0.0001712]
[1734834771720,1.00062189,96901.0,96900.0,0.0001712]
[1734834771897,1.00762189,96901.0,96900.0,0.0011712]
[1734834772277,0.37306021,96901.0,96900.0,0.0011712]
[1734834772425,0.35378219,96901.0,96900.0,0.2075692]
[1734834773004,0.34678219,96901.0,96900.0,0.33321192]
[1734834773206,0.53155578,96901.0,96900.0,0.33321192]
[1734834773409,0.55485118,96901.0,96900.0,0.12781392]
[1734834773642,0.55785118,96901.0,96900.0,0.12781392]
[1734834774235,0.55485118,96901.0,96900.0,0.12781392]
[1734834774473,0.02863125,96901.0,96900.0,0.12881392]
[1734834774645,0.0192954,96901.0,96900.0,0.0971416]
[1734834774903,0.02139959,96901.0,96900.0,0.0001712]
[1734834775053,0.02139959,96901.0,96900.0,0.0011712]
[1734834775500,0.05227335,96901.0,96900.0,0.0011712]
[1734834775683,0.05227335,96901.0,96900.0,0.0021712]
[1734834775881,0.05227335,96901.0,96900.0,0.0011712]
[1734834776279,0.05527335,96901.0,96900.0,0.0011712]
[1734834776475,0.05527335,96901.0,96900.0,0.0001712]
[1734834776888,0.05627335,96901.0,96900.0,0.0001712]
[1734834777286,0.05527335,96901.0,96900.0,0.0001712]
[1734834777667,0.05627335,96901.0,96900.0,0.0001712]
[1734834784365,0.15758175,96901.0,96900.0,0.0001712]
[1734834784569,0.30758175,96901.0,96900.0,0.0001712]
[1734834786338,0.83388447,96901.0,96900.0,0.0001712]
[1734834787000,0.73257607,96901.0,96900.0,0.0001712]
[1734834787329,0.20627335,96901.0,96900.0,0.0001712]
[1734834787510,0.05627335,96901.0,96900.0,0.0001712]
[1734834787717,0.05627335,96901.0,96900.0,0.0467712]
[1734834788120,0.05627335,96901.0,96900.0,0.15624352]
[1734834788121,0.02539959,96901.0,96900.0,0.15624352]
[1734834788433,0.0232954,96901.0,96900.0,0.25221392]
[1734834788877,0.0222954,96901.0,96900.0,0.25221392]
[1734834789077,0.0192954,96901.0,96900.0,0.25221392]
[1734834789296,0.0192954,96901.0,96900.0,0.25421392]
[1734834792423,0.0192954,96901.0,96900.0,0.2235416]
[1734834793396,0.0192954,96901.0,96900.0,0.25421392]
[1734834797523,0.0192954,96901.0,96900.0,0.25321392]
[1734834798392,0.0192954,96901.0,96900.0,0.25421392]
[1734834798593,0.0192954,96901.0,96900.0,0.0021712]
[1734834798792,0.2030038,96901.0,96900.0,0.0011712]
[1734834798947,0.4008287,96901.0,96900.0,0.0021712]
[1734834799162,0.50329759,96901.0,96900.0,0.0011712]
[1734834799403,0.53417135,96901.0,96900.0,0.0011712]
[1734834799634,0.53820095,96901.0,96900.0,0.0011712]
[1734834800054,0.53820095,96901.0,96900.0,0.0001712]
[1734834800591,0.87993837,96901.0,96900.0,0.0001712]
[1734834801234,0.06932768,96899.0,96874.0,0.03067232]
[1734834801409,0.356417,96891.0,96874.0,0.03067232]
[1734834801618,0.4577254,96891.0,96874.0,0.03067232]
[1734834802041,0.51001343,96891.0,96874.0,0.03067232]
[1734834802798,0.51201343,96891.0,96874.0,0.03067232]
[1734834804103,0.51801343,96891.0,96874.0,0.03067232]
[1734834804512,0.21028803,96891.0,96880.0,0.23711132]
[1734834804728,0.06028803,96891.0,96880.0,0.03067232]
[1734834804934,0.02941427,96891.0,96880.0,0.03067232]
[1734834805158,0.12189997,96891.0,96880.0,0.03067232]
[1734834805378,0.11389997,96891.0,96881.0,0.03067232]
[1734834805840,0.11589997,96891.0,96881.0,0.03067232]
[1734834806224,0.11389997,96891.0,96881.0,0.03067232]
[1734834806401,0.11389997,96891.0,96887.0,0.03075792]
[1734834806602,0.02841427,96891.0,96887.0,0.03075792]
[1734834807028,0.02341427,96891.0,96887.0,0.03075792]
[1734834807235,0.02841427,96891.0,96887.0,0.03075792]
[1734834807641,0.02341427,96891.0,96887.0,0.03075792]
[1734834807845,0.02741427,96891.0,96887.0,0.03075792]
[1734834808040,0.02741427,96891.0,96887.0,8.56e-05]
[1734834808450,0.02841427,96891.0,96887.0,8.56e-05]
[1734834808822,0.02941427,96891.0,96887.0,8.56e-05]
[1734834809521,0.02841427,96891.0,96887.0,8.56e-05]
[1734834809817,0.02941427,96891.0,96887.0,8.56e-05]
[1734834810356,0.0192954,96891.0,96887.0,8.56e-05]
[1734834810557,0.0202954,96891.0,96887.0,0.03075792]
[1734834811232,0.0192954,96891.0,96887.0,0.03075792]
[1734834811850,0.02138405,96891.0,96887.0,0.03075792]
[1734834813109,0.0192954,96891.0,96887.0,0.03075792]
[1734834813266,0.0212954,96891.0,96887.0,0.03075792]
[1734834813486,0.0222954,96891.0,96887.0,0.03075792]
[1734834813692,0.0222954,96891.0,96890.0,0.12681392]
[1734834813944,0.0202954,96891.0,96890.0,0.12681392]
[1734834814143,0.001,96891.0,96890.0,0.12681392]
[1734834814343,0.003,96891.0,96890.0,0.1278459]
[1734834814543,0.001,96891.0,96890.0,0.0001712]
[1734834814783,0.001,96891.0,96890.0,0.0961416]
[1734834814910,0.001,96891.0,96890.0,0.0971416]
[1734834815116,0.02239374,96891.0,96890.0,0.12781392]
[1734834815472,0.0192954,96891.0,96890.0,0.0971416]
[1734834815599,0.0192954,96891.0,96890.0,0.0011712]
[1734834815803,0.0202954,96891.0,96890.0,0.0011712]
[1734834816229,0.02139374,96891.0,96890.0,0.0011712]
[1734834816634,0.02139374,96891.0,96890.0,0.0021712]
[1734834816831,0.02139374,96891.0,96890.0,0.0011712]
[1734834817459,0.02139374,96891.0,96890.0,0.0041712]
[1734834818204,0.02139374,96891.0,96890.0,0.33423292]
[1734834818501,0.02139374,96891.0,96890.0,0.46143292]
[1734834818665,0.0192954,96898.0,96897.0,0.206404]
[1734834818857,0.0192954,96898.0,96897.0,0.33304672]
[1734834819705,0.0001714,96900.0,96899.0,0.0959704]
[1734834821146,0.0031714,96900.0,96899.0,0.0959704]
[1734834821561,0.0001714,96900.0,96899.0,0.0959704]
[1734834821944,0.0011714,96900.0,96899.0,0.0959704]
[1734834822554,0.0001714,96900.0,96899.0,0.12664272]
[1734834822747,0.0001714,96900.0,96899.0,0.12767462]
[1734834822899,0.0001714,96900.0,96899.0,0.12867462]
[1734834823480,0.0001714,96900.0,96899.0,0.22998302]
[1734834823686,0.0001714,96900.0,96899.0,0.30885112]
[1734834824005,0.0001714,96900.0,96899.0,0.35715112]
[1734834824167,0.0001714,96900.0,96899.0,1.05310889]
[1734834824383,0.0001714,96900.0,96899.0,1.15310889]
[1734834825025,0.0001714,96900.0,96899.0,1.15210889]
[1734834825203,0.0001714,96900.0,96899.0,1.25210889]
[1734834825403,0.0001714,96900.0,96899.0,1.25510889]
[1734834825863,0.0001714,96900.0,96899.0,1.25210889]
[1734834826018,0.0001714,96900.0,96899.0,1.15210889]
[1734834826223,0.0001714,96900.0,96899.0,1.25510889]
[1734834826571,0.0001714,96900.0,96899.0,1.25310889]
[1734834826775,0.0001714,96900.0,96899.0,1.15410889]
[1734834826932,0.0001714,96900.0,96899.0,1.25410889]
[1734834827131,0.0001714,96900.0,96899.0,1.25010889]
[1734834827311,0.0011714,96900.0,96899.0,1.25910889]
[1734834827684,0.0001714,96900.0,96899.0,1.25010889]
[1734834827980,0.0001714,96900.0,96899.0,1.25910889]
[1734834828332,0.0001714,96900.0,96899.0,1.26410889]
[1734834828573,0.0001164,96900.0,96899.0,1.26410889]
[1734834828805,0.0001164,96900.0,96899.0,1.25910889]
[1734834829200,0.0011164,96900.0,96899.0,1.25610889]
[1734834829371,0.0021164,96900.0,96899.0,1.26510889]
[1734834830093,0.0011164,96900.0,96899.0,1.25910889]